fUST/lending_fUST_20251121
["ID","MTS","AMOUNT","RATE_DAILY","PERIOD"]
[394518342,1763660013484,230.947088,0.00038961,50]
[394518343,1763660014010,230.947093,0.00038961,50]
[394518344,1763660024562,283.1,0.00038961,20]
[394518348,1763660062399,151.0,0.00038961,50]
[394518350,1763660063485,156.681556,0.00038961,50]
[394518351,1763660066146,151.0,0.00038961,50]
[394518352,1763660066548,151.0,0.00038961,50]
[394518353,1763660066885,151.0,0.00038961,50]
[394518354,1763660067256,151.0,0.00038961,50]
[394518355,1763660068249,151.0,0.00038961,50]
[394518356,1763660068586,157.078367,0.00038961,50]
[394518357,1763660084196,150.0,0.00014328,30]
[394518358,1763660084651,150.0,0.0001563,30]
[394518359,1763660089449,151.0,0.00038961,50]
[394518360,1763660090059,151.0,0.00038961,50]
[394518361,1763660090623,151.0,0.00038961,50]
[394518362,1763660090981,281.865985,0.00038961,50]
[394518363,1763660095881,-167.00221052,5.683e-05,2]
[394518364,1763660100191,-192.67114769,5.683e-05,2]
[394518365,1763660102175,-177.79406471,5.683e-05,2]
[394518366,1763660105916,-282.57982742,5.683e-05,2]
[394518367,1763660107422,-405.69373878,5.683e-05,2]
[394518368,1763660109422,-256.11145763,5.683e-05,2]
[394518369,1763660119250,538.69128505,5.625e-05,2]
[394518370,1763660127025,191.925048,0.00038961,50]
[394518371,1763660127408,191.925048,0.00038961,50]
[394518372,1763660127959,191.925048,0.00038961,50]
[394518373,1763660128394,191.925048,0.00038961,50]
[394518374,1763660129110,191.925048,0.00038961,50]
[394518375,1763660129595,191.925048,0.00038961,50]
[394518376,1763660129796,191.925048,0.00038961,50]
[394518377,1763660130185,191.925048,0.00038961,50]
[394518378,1763660130542,191.925048,0.00038961,50]
[394518379,1763660131034,191.925048,0.00038961,50]
[394518380,1763660131406,191.925048,0.00038961,50]
[394518381,1763660131844,191.925048,0.00038961,50]
[394518382,1763660132321,191.925048,0.00038961,50]
[394518383,1763660132651,191.925048,0.00038961,50]
[394518384,1763660133158,191.925048,0.00038961,50]
[394518385,1763660133597,191.925048,0.00038961,50]
[394518386,1763660134003,191.925048,0.00038961,50]
[394518387,1763660134414,191.925048,0.00038961,50]
[394518388,1763660135270,191.925048,0.00038961,50]
[394518389,1763660135731,191.925048,0.00038961,50]
[394518390,1763660140006,576.725467,0.00038961,50]
[394518391,1763660140532,576.725467,0.00038961,50]
[394518392,1763660140845,535.54017497,5.625e-05,2]
[394518393,1763660140890,576.725467,0.00038961,50]
[394518394,1763660141748,576.725467,0.00038961,50]
[394518395,1763660142049,576.725467,0.00038961,50]
[394518396,1763660142896,576.725467,0.00038961,50]
[394518397,1763660143279,576.725467,0.00038961,50]
[394518398,1763660143578,576.725467,0.00038961,50]
[394518399,1763660143931,576.725467,0.00038961,50]
[394518400,1763660144228,576.725467,0.00038961,50]
[394518401,1763660144600,576.725467,0.00038961,50]
[394518402,1763660145059,576.725467,0.00038961,50]
[394518403,1763660145452,576.725467,0.00038961,50]
[394518404,1763660145973,576.725467,0.00038961,50]
[394518405,1763660146158,2419.95249274,5.582e-05,2]
[394518406,1763660146331,576.725467,0.00038961,50]
[394518407,1763660146676,576.725467,0.00038961,50]
[394518408,1763660146927,151.0,0.00038961,50]
[394518409,1763660146992,576.725467,0.00038961,50]
[394518410,1763660147282,151.0,0.00038961,50]
[394518411,1763660147339,576.725467,0.00038961,50]
[394518412,1763660147594,151.0,0.00038961,50]
[394518413,1763660148401,151.0,0.00038961,50]
[394518414,1763660148696,151.0,0.00038961,50]
[394518415,1763660149168,151.0,0.00038961,50]
[394518416,1763660149520,151.0,0.00038961,50]
[394518417,1763660149922,151.0,0.00038961,50]
[394518418,1763660149967,576.725467,0.00038961,50]
[394518419,1763660150305,576.725466,0.00038961,50]
[394518420,1763660150507,151.0,0.00038961,50]
[394518421,1763660150899,151.0,0.00038961,50]
[394518422,1763660151264,151.0,0.00038961,50]
[394518423,1763660151743,151.0,0.00038961,50]
[394518424,1763660152045,151.0,0.00038961,50]
[394518425,1763660152491,151.0,0.00038961,50]
[394518426,1763660152556,151.0,0.00038961,50]
[394518427,1763660152870,176.358679,0.00038961,50]
[394518428,1763660153183,151.0,0.00038961,50]
[394518429,1763660153611,151.0,0.00038961,50]
[394518430,1763660153931,151.0,0.00038961,50]
[394518431,1763660155238,151.0,0.00038961,50]
[394518432,1763660155526,151.0,0.00038961,50]
[394518433,1763660155866,151.0,0.00038961,50]
[394518434,1763660156299,151.0,0.00038961,50]
[394518435,1763660156680,151.0,0.00038961,50]
[394518436,1763660157157,151.0,0.00038961,50]
[394518437,1763660157487,151.0,0.00038961,50]
[394518438,1763660157803,179.171731,0.00038961,50]
[394518439,1763660170564,151.0,0.00038961,50]
[394518440,1763660171183,151.0,0.00038961,50]
[394518441,1763660171482,151.0,0.00038961,50]
[394518442,1763660171902,151.0,0.00038961,50]
[394518443,1763660172487,151.0,0.00038961,50]
[394518444,1763660172853,151.0,0.00038961,50]
[394518445,1763660173542,151.0,0.00038961,50]
[394518446,1763660173925,151.0,0.00038961,50]
[394518447,1763660174304,151.0,0.00038961,50]
[394518448,1763660174713,151.0,0.00038961,50]
[394518449,1763660175051,151.0,0.00038961,50]
[394518450,1763660175476,177.99237048,0.00038961,50]
[394518451,1763660185076,151.0,0.00038961,50]
[394518452,1763660185665,151.0,0.00038961,50]
[394518453,1763660186088,151.0,0.00038961,50]
[394518454,1763660186453,151.0,0.00038961,50]
[394518455,1763660186763,151.0,0.00038961,50]
[394518456,1763660187086,151.0,0.00038961,50]
[394518457,1763660187425,151.0,0.00038961,50]
[394518458,1763660187794,151.0,0.00038961,50]
[394518459,1763660188127,199.475332,0.00038961,50]
[394518460,1763660189308,232.543726,0.00038961,50]
[394518461,1763660189692,232.543726,0.00038961,50]
[394518462,1763660190029,232.543726,0.00038961,50]
[394518463,1763660192086,232.543726,0.00038961,50]
[394518464,1763660192139,232.543726,0.00038961,50]
[394518465,1763660193317,232.543726,0.00038961,50]
[394518466,1763660193706,232.543726,0.00038961,50]
[394518467,1763660194055,232.543726,0.00038961,50]
[394518468,1763660194681,232.543726,0.00038961,50]
[394518469,1763660195074,232.543726,0.00038961,50]
[394518470,1763660195442,232.543726,0.00038961,50]
[394518471,1763660195938,232.543726,0.00038961,50]
[394518472,1763660196806,232.543726,0.00038961,50]
[394518473,1763660197115,232.543726,0.00038961,50]
[394518474,1763660197441,232.543726,0.00038961,50]
[394518475,1763660197816,232.543726,0.00038961,50]
[394518476,1763660198294,232.543726,0.00038961,50]
[394518477,1763660199135,232.543726,0.00038961,50]
[394518478,1763660199576,232.543726,0.00038961,50]
[394518479,1763660200058,232.543723,0.00038961,50]
[394518480,1763660207339,151.0,0.00038961,50]
[394518481,1763660207651,151.0,0.00038961,50]
[394518482,1763660207948,151.0,0.00038961,50]
[394518483,1763660208246,151.0,0.00038961,50]
[394518484,1763660222644,-150.0,0.00015,10]
[394518485,1763660235115,300.0,7.741e-05,44]
[394518487,1763660244899,586.54669132,0.00038961,30]
[394518488,1763660250930,151.0,0.00038961,50]
[394518489,1763660251390,151.0,0.00038961,50]
[394518490,1763660251949,151.0,0.00038961,50]
[394518491,1763660252115,151.0,0.00038961,50]
[394518492,1763660252253,151.0,0.00038961,50]
[394518493,1763660252436,151.0,0.00038961,50]
[394518494,1763660252827,151.0,0.00038961,50]
[394518495,1763660252860,229.452896,0.00038961,50]
[394518496,1763660253171,151.0,0.00038961,50]
[394518497,1763660253467,167.372273,0.00038961,50]
[394518498,1763660254999,161.158444,0.00038961,50]
[394518499,1763660255294,161.158444,0.00038961,50]
[394518500,1763660256146,161.158444,0.00038961,50]
[394518501,1763660256606,161.158444,0.00038961,50]
[394518502,1763660257110,161.158444,0.00038961,50]
[394518503,1763660257462,161.158444,0.00038961,50]
[394518504,1763660257807,161.158444,0.00038961,50]
[394518505,1763660258298,161.158444,0.00038961,50]
[394518506,1763660258651,161.158444,0.00038961,50]
[394518507,1763660259025,161.158444,0.00038961,50]
[394518508,1763660259395,161.158444,0.00038961,50]
[394518509,1763660259753,161.158444,0.00038961,50]
[394518510,1763660260250,161.158444,0.00038961,50]
[394518511,1763660260603,161.158444,0.00038961,50]
[394518512,1763660260929,161.158444,0.00038961,50]
[394518513,1763660261373,161.158444,0.00038961,50]
[394518514,1763660261707,161.158444,0.00038961,50]
[394518515,1763660262182,161.158444,0.00038961,50]
[394518516,1763660262494,161.158444,0.00038961,50]
[394518517,1763660262961,161.158453,0.00038961,50]
[394518518,1763660287659,151.0,0.0003896,50]
[394518519,1763660288066,151.0,0.0003896,50]
[394518520,1763660290791,-150.0,0.00015,10]
[394518526,1763660435076,223.51755,0.00027,120]
[394518527,1763660435387,223.51755,0.000323,120]
[394518528,1763660446736,5473.74811636,5.623e-05,2]
[394518529,1763660446759,469.41304534,5.623e-05,2]
[394518530,1763660461632,7238.59308349,5.623e-05,2]
[394518532,1763660469494,300.0,5.622e-05,2]
[394518533,1763660471842,32896.9,0.0003896,20]
[394518539,1763660608342,500.0,0.0003896,30]
[394518540,1763660608696,500.0,0.0003896,30]
[394518541,1763660609117,562.29664757,0.0003896,30]
[394518544,1763660648405,500.00953618,0.0003896,30]
[394518547,1763660682138,-300.0,5.678e-05,2]
[394518548,1763660682163,-500.0,5.678e-05,2]
[394518549,1763660682189,-457.6903539,5.678e-05,2]
[394518550,1763660684381,411.0,0.0002191,120]
[394518551,1763660684685,-42.3096461,5.678e-05,2]
[394518552,1763660684714,-318.72931487,5.678e-05,2]
[394518553,1763660684833,411.0,0.000219,120]
[394518554,1763660685273,411.0,0.0002189,120]
[394518555,1763660686138,-181.27068513,5.678e-05,2]
[394518556,1763660686169,-118.53517892,5.678e-05,2]
[394518557,1763660687625,-161.41791628,5.678e-05,2]
[394518558,1763660689131,-218.99074846,5.678e-05,2]
[394518559,1763660692445,-1.05615634,5.678e-05,2]
[394518560,1763660692475,-282.5142226,5.678e-05,2]
[394518561,1763660694941,-217.4857774,5.678e-05,2]
[394518562,1763660694965,-110.41698883,5.678e-05,2]
[394518563,1763660698884,-303.52568229,5.678e-05,2]
[394518564,1763660701419,-86.05732888,5.678e-05,2]
[394518565,1763660701445,-110.64675117,5.678e-05,2]
[394518566,1763660702987,-307.18276269,5.678e-05,2]
[394518567,1763660710852,-201.05386391,5.677e-05,2]
[394518568,1763660712922,-98.94613609,5.677e-05,2]
[394518569,1763660712945,-80.71118288,5.677e-05,2]
[394518570,1763660718845,-219.28881712,5.677e-05,2]
[394518571,1763660718869,-175.47968635,5.677e-05,2]
[394518572,1763660721948,-290.48673227,5.677e-05,2]
[394518575,1763660726693,-282.03627464,5.677e-05,2]
[394518577,1763660752853,1257.0177963,4.75e-05,2]
[394518578,1763660800889,-109.99730674,5.677e-05,2]
[394518579,1763660800917,-155.53840138,5.677e-05,2]
[394518580,1763660802444,-217.96372536,5.677e-05,2]
[394518581,1763660805118,-126.49787326,5.677e-05,2]
[394518582,1763660805141,-38.69748054,5.677e-05,2]
[394518583,1763660806685,-267.12744812,5.677e-05,2]
[394518584,1763660808176,-182.68800346,5.677e-05,2]
[394518585,1763660808200,-96.52423555,5.677e-05,2]
[394518586,1763660813194,-164.00215664,5.677e-05,2]
[394518587,1763660816470,-158.90364742,5.677e-05,2]
[394518588,1763660820692,-80.56996039,5.677e-05,2]
[394518589,1763660820723,-158.40761507,5.677e-05,2]
[394518590,1763660822685,-152.46570568,5.677e-05,2]
[394518591,1763660825752,-154.27065115,5.677e-05,2]
[394518592,1763660830583,-34.8560281,5.677e-05,2]
[394518593,1763660830607,-135.11468132,5.677e-05,2]
[394518594,1763660832184,-301.40574774,5.677e-05,2]
[394518595,1763660834697,-63.47957094,5.677e-05,2]
[394518596,1763660834726,-111.87859079,5.677e-05,2]
[394518597,1763660838474,-252.04792778,5.677e-05,2]
[394518598,1763660841073,-136.07348143,5.677e-05,2]
[394518599,1763660841100,-258.23613576,5.677e-05,2]
[394518600,1763660846524,-217.16352031,5.677e-05,2]
[394518601,1763660849754,-24.60034393,5.677e-05,2]
[394518602,1763660849777,-145.17947399,5.677e-05,2]
[394518603,1763660854553,-255.4883655,5.677e-05,2]
[394518604,1763660858417,-99.33216051,5.677e-05,2]
[394518605,1763660858446,-256.04595563,5.677e-05,2]
[394518606,1763660861496,10000.01,5.62e-05,2]
[394518607,1763660861518,7041.11293985,5.62e-05,2]
[394518608,1763660862448,-243.95404437,5.677e-05,2]
[394518609,1763660862471,-281.00608083,5.677e-05,2]
[394518610,1763660865978,-218.99391917,5.677e-05,2]
[394518611,1763660866003,-129.19908488,5.677e-05,2]
[394518612,1763660868532,-339.18937186,5.677e-05,2]
[394518613,1763660870649,-31.61154326,5.677e-05,2]
[394518614,1763660870677,-179.45187589,5.677e-05,2]
[394518615,1763660873827,-170.67442085,5.677e-05,2]
[394518616,1763660873854,-206.44092067,5.677e-05,2]
[394518617,1763660876475,2958.89706015,5.622e-05,2]
[394518618,1763660876507,10000.01,5.622e-05,2]
[394518619,1763660876539,10000.01,5.622e-05,2]
[394518620,1763660876573,10000.01,5.622e-05,2]
[394518621,1763660876606,10000.01,5.622e-05,2]
[394518622,1763660876641,10000.01,5.622e-05,2]
[394518623,1763660876687,-382.98072955,5.622e-05,2]
[394518624,1763660878610,-185.74308914,5.62e-05,2]
[394518625,1763660880687,-228.20064166,5.62e-05,2]
[394518626,1763660882178,-163.30045192,5.62e-05,2]
[394518627,1763660885086,-234.46429188,5.62e-05,2]
[394518628,1763660887728,-169.52504014,5.564e-05,2]
[394518629,1763660889198,-165.20646106,5.564e-05,2]
[394518630,1763660890738,-174.29091322,5.564e-05,2]
[394518631,1763660892824,-265.37778853,5.564e-05,2]
[394518632,1763660898963,-241.29289396,5.564e-05,2]
[394518633,1763660901042,-187.1797317,5.564e-05,2]
[394518635,1763660904327,-281.19111995,5.564e-05,2]
[394518636,1763660905837,-325.64518615,5.564e-05,2]
[394518637,1763660908445,-431.29047421,5.564e-05,2]
[394518638,1763660910957,-192.3875743,5.564e-05,2]
[394518639,1763660912930,-229.2473945,5.564e-05,2]
[394518640,1763660914583,-223.02939743,5.564e-05,2]
[394518641,1763660917920,-181.35354556,5.564e-05,2]
[394518642,1763660923860,-204.1845025,5.564e-05,2]
[394518643,1763660936575,189.6679155,4.701e-05,2]
[394518644,1763660937181,-174.16481932,5.564e-05,2]
[394518645,1763660942185,-289.21322807,5.564e-05,2]
[394518646,1763660944955,-360.48699848,5.564e-05,2]
[394518647,1763660949567,-282.03627464,5.564e-05,2]
[394518648,1763660953331,-166.84898511,5.564e-05,2]
[394518650,1763660957258,-202.73116124,5.564e-05,2]
[394518651,1763660960243,-280.35281112,5.564e-05,2]
[394518652,1763660961286,-2408.5440596,5.564e-05,2]
[394518653,1763660961420,-183.0,5.618e-05,2]
[394518654,1763660961450,-500.0,5.619e-05,2]
[394518655,1763660961480,-500.0,5.619e-05,2]
[394518656,1763660961510,-500.0,5.619e-05,2]
[394518657,1763660961537,-558.01567641,5.619e-05,2]
[394518658,1763660961564,-200.89052798,5.619e-05,2]
[394518659,1763660961670,-299.10947202,5.619e-05,2]
[394518660,1763660961699,-500.0,5.619e-05,2]
[394518661,1763660961726,-500.0,5.619e-05,2]
[394518662,1763660961757,-500.0,5.619e-05,2]
[394518663,1763660961784,-500.0,5.619e-05,2]
[394518664,1763660961812,-500.0,5.619e-05,2]
[394518665,1763660961840,-500.0,5.619e-05,2]
[394518666,1763660961868,-500.0,5.619e-05,2]
[394518667,1763660961895,-500.0,5.619e-05,2]
[394518668,1763660961923,-500.0,5.619e-05,2]
[394518669,1763660962024,-500.0,5.619e-05,2]
[394518670,1763660962053,-500.0,5.619e-05,2]
[394518671,1763660962080,-500.0,5.619e-05,2]
[394518672,1763660962107,-500.0,5.619e-05,2]
[394518673,1763660962135,-500.0,5.619e-05,2]
[394518674,1763660962164,-500.0,5.619e-05,2]
[394518675,1763660962193,-500.0,5.619e-05,2]
[394518676,1763660962221,-349.28187803,5.619e-05,2]
[394518677,1763660962253,-229.2473945,5.619e-05,2]
[394518678,1763660962279,-194.65805732,5.619e-05,2]
[394518679,1763660962307,-520.80188955,5.619e-05,2]
[394518680,1763660962421,-2798.89393109,5.62e-05,2]
[394518681,1763660962570,-4402.22213782,5.62e-05,2]
[394518682,1763660963107,-150.0,5.591e-05,2]
[394518683,1763660963133,-47.29455675,5.622e-05,2]
[394518684,1763660970337,-5319.28190188,5.622e-05,2]
[394518685,1763660970441,-10000.01,5.622e-05,2]
[394518686,1763660970580,-10000.01,5.622e-05,2]
[394518687,1763660970709,-10000.01,5.622e-05,2]
[394518688,1763660970852,-10000.01,5.622e-05,2]
[394518689,1763660974117,-473.21318027,5.566e-05,2]
[394518690,1763660977720,-405.22356041,5.566e-05,2]
[394518691,1763660980374,-377.99952834,5.566e-05,2]
[394518692,1763660981902,-267.40812804,5.566e-05,2]
[394518693,1763660986900,-284.98077056,5.566e-05,2]
[394518694,1763660987487,10000.01,5.51e-05,2]
[394518695,1763660987508,1925.87998303,5.51e-05,2]
[394518696,1763660989709,-464.9595184,5.566e-05,2]
[394518697,1763660992016,-255.30727653,5.566e-05,2]
[394518698,1763660998090,-171.01063317,5.566e-05,2]
[394518699,1763661000172,-194.6708573,5.566e-05,2]
[394518700,1763661002316,-179.54970403,5.566e-05,2]
[394518702,1763661007957,-186.9649106,5.566e-05,2]
[394518703,1763661009542,8074.13001697,5.51e-05,2]
[394518704,1763661009565,2301.28120607,5.51e-05,2]
[394518705,1763661009602,-200.95741177,5.566e-05,2]
[394518706,1763661012101,-194.0,5.565e-05,2]
[394518707,1763661012128,-33.97848245,5.566e-05,2]
[394518708,1763661013869,-223.09755959,5.565e-05,2]
[394518709,1763661015482,-187.6986916,5.565e-05,2]
[394518710,1763661017501,-156.33798714,5.565e-05,2]
[394518711,1763661021307,-231.86576167,5.565e-05,2]
[394518712,1763661021332,-189.61737878,5.566e-05,2]
[394518737,1763661023953,-228.82068515,5.566e-05,2]
[394518738,1763661025432,-280.93565234,5.566e-05,2]
[394518739,1763661027458,-163.46915366,5.566e-05,2]
[394518740,1763661029867,-219.57864953,5.566e-05,2]
[394518741,1763661031298,7698.72879393,5.51e-05,2]
[394518742,1763661031324,1391.93875436,5.51e-05,2]
[394518766,1763661031992,-220.13191091,5.566e-05,2]
[394518769,1763661032005,-892.14314888,5.566e-05,2]
[394518774,1763661032041,-1032.35837073,5.566e-05,2]
[394518780,1763661032098,-6726.45546824,5.566e-05,2]
[394518782,1763661032107,-500.0,5.619e-05,2]
[394518784,1763661032117,-161.71499617,5.619e-05,2]
[394518786,1763661032126,-251.10260508,5.619e-05,2]
[394518788,1763661032136,-227.97848245,5.619e-05,2]
[394518790,1763661032146,-4489.04844807,5.622e-05,2]
[394518792,1763661032158,-37404.98740138,5.622e-05,2]
[394519062,1763661039593,-103223.14686474,5.622e-05,2]
[394519074,1763661041109,-3e-08,5.622e-05,2]
[394519075,1763661041161,-136.64538959,5.622e-05,2]
[394519098,1763661045472,-42026.40067686,5.622e-05,2]
[394519116,1763661099303,-300.0,5.565e-05,2]
[394519117,1763661099325,-215.2884375,5.565e-05,2]
[394519118,1763661101791,-187.49742034,5.565e-05,2]
[394519119,1763661103363,-2.33703856,5.565e-05,2]
[394519120,1763661103387,-320.27811192,5.565e-05,2]
[394519121,1763661105909,-173.07399302,5.565e-05,2]
[394519122,1763661108020,-6.64789506,5.565e-05,2]
[394519123,1763661108056,-241.52167709,5.565e-05,2]
[394519124,1763661110131,-203.19679978,5.565e-05,2]
[394519125,1763661112196,-55.28152313,5.565e-05,2]
[394519126,1763661112216,-265.09591958,5.565e-05,2]
[394519127,1763661114319,-234.90408042,5.565e-05,2]
[394519128,1763661114341,-14.76307954,5.565e-05,2]
[394519129,1763661115898,-339.87430034,5.565e-05,2]
[394519130,1763661119131,-145.36262012,5.565e-05,2]
[394519131,1763661119153,-111.30676181,5.565e-05,2]
[394519132,1763661121192,-187.88373674,5.565e-05,2]
[394519133,1763661122763,-75.96906053,5.565e-05,2]
[394519134,1763661122784,-94.79260092,5.565e-05,2]
[394519135,1763661124721,300.0,5.564e-05,2]
[394519136,1763661125404,-248.30159134,5.565e-05,2]
[394519137,1763661129134,-156.90580774,5.565e-05,2]
[394519138,1763661129157,-263.96394316,5.565e-05,2]
[394519139,1763661133245,-236.03605684,5.565e-05,2]
[394519140,1763661133268,-35.5694881,5.565e-05,2]
[394519141,1763661135209,-125.27194703,5.565e-05,2]
[394519142,1763661135234,-190.49504036,5.565e-05,2]
[394519143,1763661137820,-219.99452418,5.565e-05,2]
[394519144,1763661139869,-89.51043546,5.565e-05,2]
[394519145,1763661139991,-186.24481626,5.565e-05,2]
[394519146,1763661140017,-42.25189066,5.565e-05,2]
[394519147,1763661142412,-245.99356148,5.565e-05,2]
[394519148,1763661146704,-156.63332435,5.565e-05,2]
[394519149,1763661151527,-55.12122351,5.565e-05,2]
[394519150,1763661151554,-130.43613163,5.565e-05,2]
[394519151,1763661153630,-213.31255598,5.565e-05,2]
[394519152,1763661156326,-156.25131239,5.565e-05,2]
[394519153,1763661156347,-325.58444253,5.565e-05,2]
[394519154,1763661160510,-174.41555747,5.565e-05,2]
[394519155,1763661160534,-231.2767117,5.565e-05,2]
[394519156,1763661163540,-169.58767121,5.565e-05,2]
[394519157,1763661165125,-99.13561709,5.565e-05,2]
[394519158,1763661165146,-77.90443855,5.565e-05,2]
[394519159,1763661166726,-170.47598603,5.565e-05,2]
[394519160,1763661166750,-153.64209412,5.565e-05,2]
[394519161,1763661167686,212.64253529,5.509e-05,2]
[394519162,1763661168381,1200.0,5.564e-05,2]
[394519163,1763661169911,-179.28524712,5.565e-05,2]
[394519164,1763661172917,-167.07265876,5.565e-05,2]
[394519165,1763661172940,-31.06251391,5.565e-05,2]
[394519166,1763661174887,-163.6630037,5.565e-05,2]
[394519167,1763661175503,300.0,5.509e-05,2]
[394519168,1763661178033,-314.83739909,5.565e-05,2]
[394519169,1763661182440,-185.16260091,5.565e-05,2]
[394519170,1763661182467,-196.02082834,5.565e-05,2]
[394519171,1763661184188,300.0,5.564e-05,2]
[394519172,1763661185602,-109.25365405,5.565e-05,2]
[394519173,1763661185628,-139.64374087,5.565e-05,2]
[394519174,1763661187206,-280.81835382,5.565e-05,2]
[394519175,1763661187231,-79.72335958,5.565e-05,2]
[394519176,1763661190747,-180.08281678,5.565e-05,2]
[394519177,1763661194013,-181.65294987,5.565e-05,2]
[394519178,1763661198365,300.0,5.509e-05,2]
[394519179,1763661199008,-58.54087377,5.565e-05,2]
[394519180,1763661199031,-192.00105461,5.565e-05,2]
[394519181,1763661200346,-226.99780248,5.565e-05,2]
[394519182,1763661202366,-81.00114291,5.565e-05,2]
[394519183,1763661202389,-87.41658686,5.565e-05,2]
[394519184,1763661206769,-323.1023012,5.565e-05,2]
[394519185,1763661208743,-191.21326362,5.565e-05,2]
[394519186,1763661208765,-26.1961813,5.565e-05,2]
[394519187,1763661213597,166.22354857,5.509e-05,2]
[394519188,1763661214499,-159.00977778,5.565e-05,2]
[394519189,1763661215106,279.68306819,5.564e-05,2]
[394519190,1763661216318,-207.70071421,5.565e-05,2]
[394519191,1763661216690,500.0,5.564e-05,2]
[394519192,1763661216733,1143.23377053,5.564e-05,2]
[394519193,1763661216777,500.0,5.564e-05,2]
[394519194,1763661216810,1143.23377053,5.564e-05,2]
[394519195,1763661216856,1143.23377053,5.564e-05,2]
[394519196,1763661216907,1119.820782,5.564e-05,2]
[394519197,1763661216933,23.41298853,5.564e-05,2]
[394519198,1763661216971,500.0,5.564e-05,2]
[394519199,1763661217002,1143.23377053,5.564e-05,2]
[394519200,1763661217038,500.0,5.564e-05,2]
[394519201,1763661217081,1143.23377053,5.564e-05,2]
[394519202,1763661217110,188.44763123,5.564e-05,2]
[394519203,1763661217151,1143.23377053,5.564e-05,2]
[394519204,1763661217187,1143.23377053,5.564e-05,2]
[394519205,1763661217228,1143.23377053,5.564e-05,2]
[394519206,1763661217273,1143.23377053,5.564e-05,2]
[394519207,1763661217313,1143.23377053,5.564e-05,2]
[394519208,1763661217354,785.51298653,5.564e-05,2]
[394519209,1763661218585,-229.71325288,5.564e-05,2]
[394519210,1763661221618,300.0,5.508e-05,2]
[394519211,1763661222564,-128.00753112,5.564e-05,2]
[394519212,1763661222588,-32.90826158,5.564e-05,2]
[394519213,1763661224062,-160.84270094,5.564e-05,2]
[394519214,1763661224532,9700.01,4.653e-05,2]
[394519215,1763661224556,7733.8055548,4.653e-05,2]
[394519216,1763661225639,-156.44293546,5.564e-05,2]
[394519217,1763661229387,-178.74595623,5.564e-05,2]
[394519218,1763661230849,-604.71255303,5.564e-05,2]
[394519219,1763661234040,-9.58136329,5.564e-05,2]
[394519220,1763661234069,-236.26636366,5.564e-05,2]
[394519221,1763661236452,2266.2044452,5.508e-05,2]
[394519222,1763661236474,10000.01,5.508e-05,2]
[394519223,1763661236501,3273.77691642,5.508e-05,2]
[394519224,1763661238017,-226.87864518,5.564e-05,2]
[394519225,1763661240514,-323.41679082,5.564e-05,2]
[394519226,1763661244992,-259.12135482,5.564e-05,2]
[394519227,1763661247862,-97.55061605,5.564e-05,2]
[394519228,1763661247889,-109.0492507,5.564e-05,2]
[394519229,1763661249960,-446.215756,5.564e-05,2]
[394519230,1763661252108,6726.23308358,5.508e-05,2]
[394519231,1763661253981,-212.03531193,5.508e-05,2]
[394519232,1763661256033,-300.0222215,5.508e-05,2]
[394519233,1763661258189,-165.20419547,5.508e-05,2]
[394519234,1763661262813,-300.0,5.508e-05,2]
[394519235,1763661266720,-196.38694873,5.508e-05,2]
[394519236,1763661270355,-350.20249363,5.508e-05,2]
[394519237,1763661271944,-455.58661567,5.508e-05,2]
[394519238,1763661275548,-158.11220794,5.508e-05,2]
[394519239,1763661280790,-300.0,5.508e-05,2]
[394519240,1763661284685,-209.37512026,5.508e-05,2]
[394519241,1763661287203,-285.58313935,5.508e-05,2]
[394519242,1763661287871,-8400.0,5.508e-05,2]
[394519243,1763661289356,-217.36372703,5.508e-05,2]
[394519244,1763661289905,158.87148657,5.453e-05,2]
[394519245,1763661293239,-204.6806103,5.508e-05,2]
[394519246,1763661294729,-170.35032243,5.508e-05,2]
[394519247,1763661297226,-175.94239484,5.508e-05,2]
[394519248,1763661301041,-172.04244832,5.508e-05,2]
[394519249,1763661303672,-268.76793807,5.507e-05,2]
[394519250,1763661304769,347.98267993,5.452e-05,2]